Cogmind - Beta 12 @@@ ROGUE MODE // 2023.12.28 @ 14:44:16 Player: arkn Result: Destroyed by Y-45 Defender with Heavy Assault Rifle Performance ------------- Evolutions (1) 500 Regions Visited (3) 600 Robots Destroyed (56) 280 Value Destroyed (1412) 1412 Prototype IDs (5) 100 Alien Tech Used (0) 0 Bonus (33) 33 TOTAL SCORE: 2925 Bonus ------- High Alert Combat Kills 33 Cogmind --------- Core Integrity 0/400 Matter 290/300 Energy 140/160 System Corruption 13% Temperature Cool (27) Movement Treading (240) Ox1 Location -9/Storage Parts ------- > --- POWER (1) -------- Light Nuclear Core > --- PROPULSION (3) --- Light Treads Aluminum Leg > --- UTILITY (3) ------ Improved Heat Sink Large Storage Unit > --- WEAPON (2) ------- EM Pulse Gun Particle Gun > --- INVENTORY (15) --- Heavy Ion Engine Heavy Ion Engine Improved Flight Unit Medium Matter Pod (100) Structural Scanner Visual Processing Unit Seismic Detector ECM Suite Light Armor Plating Long-range Tractor Beam Mini Grenade Launcher Hammer Peak State ------------ > --- POWER ------------ Reinforced Ion Engine > --- PROPULSION ------- Aluminum Leg Aluminum Leg Improved Aluminum Leg > --- UTILITY ---------- Improved Heat Sink Medium Storage Unit Structural Scanner > --- WEAPON ----------- Improved Assault Rifle Improved Assault Rifle > --- INVENTORY -------- Cooling System Medium Matter Pod Seismic Detector Seismic Detector ECM Suite Tractor Beam Improved EM Shotgun Improved Assault Rifle Mini Grenade Launcher Hammer [Rating: 18] Favorites ----------- Power Light Nuclear Core Engine Heavy Ion Engine Power Core Light Nuclear Core Propulsion Aluminum Leg Treads Light Treads Leg Aluminum Leg Utility Medium Storage Unit Device Structural Scanner Storage Medium Storage Unit Protection Light Armor Plating Weapon Assault Rifle Energy Gun Shock Rifle Ballistic Gun Assault Rifle Launcher Mini Grenade Launcher Special Weapon Mining Laser Impact Weapon Hammer Build | -11 -10 -9 -9 ------- Run | Jun Mat Mat Sto Slots Evolved 2 | . . 2 . Power . | . . . . Propulsion 1 | . . 1 . Utility 1 | . . 1 . Weapon . | . . . . Parts Attached 56 | . 5 38 13 Power 4 | . 1 2 1 Engine 2 | . . 2 . Core 2 | . 1 . 1 Reactor . | . . . . Propulsion 13 | . 1 9 3 Treads 2 | . . 1 1 Leg 11 | . 1 8 2 Wheel . | . . . . Hover . | . . . . Flight . | . . . . Utility 11 | . 2 8 1 Device 8 | . 1 6 1 Storage 2 | . 1 1 . Processor . | . . . . Hackware . | . . . . Protection 1 | . . 1 . Artifact . | . . . . Weapon 28 | . 1 19 8 Energy Gun 11 | . . 6 5 Energy Cannon . | . . . . Ballistic Gun 7 | . 1 5 1 Ballistic Cannon . | . . . . Launcher 2 | . . 2 . Special Weapon 1 | . . 1 . Impact Weapon 7 | . . 5 2 Slashing Weapon . | . . . . Piercing Weapon . | . . . . Special Melee Weapon . | . . . . Unidentified Prototypes 4 | . . 4 . Corrupted Parts 3 | . . . 3 System Corruption 10 | . . . 10 Parts Lost 16 | . . 7 9 Power 1 | . . 1 . Propulsion 7 | . . 3 4 Utility 2 | . . 1 1 Weapon 6 | . . 2 4 Highest Loss Streak 6 | . . 3 6 To Critical Strikes . | . . . . Average Slot Usage (%) 92 | . 98 90 96 Engine 6 | . 6 6 8 Core 4 | . 7 4 2 Treads 2 | . . 3 . Leg 24 | . 28 21 31 Device 19 | . 12 20 21 Storage 11 | . 14 11 11 Energy Gun 8 | . . 7 18 Ballistic Gun 12 | . 28 10 . Impact Weapon 2 | . . 2 2 Naked Turns . | . . . . Heaviest Build 39 | 11 20 39 37 Greatest Support 33 | 20 20 33 30 Greatest Overweight (x) 8 | . . 8 1 Average Overweight (x) . | . . . 1 Largest Inventory Capacity 15 | . 10 15 15 Average Capacity 11 | . 8 11 15 Most Carried 15 | . 10 15 15 Average Carried 10 | . 8 10 13 Final Capacity 15 | 8 10 15 15 Final Carried 15 | 6 10 15 12 Class Distribution -------------------- 50% | Mutant 49% | Scavenger-Mutant Dominant Class ---------------- Mutant | -10/Materials Scavenger-Mutant | -9/Materials Mutant | -9/Storage Resources | -11 -10 -9 -9 ----------- Run | Jun Mat Mat Sto Matter Collected 1345 | 199 140 894 112 Remotely 87 | . . 87 . Salvage Created 2091 | . 263 1370 458 Parts 131 | . 27 77 27 Haulers Intercepted 9 | . 1 5 3 Recyclers Shooed . | . . . . Parts Field Recycled . | . . . . Retrieved Matter . | . . . . Parts Self-Destructed . | . . . . Prevented . | . . . . Kills | -11 -10 -9 -9 ------- Run | Jun Mat Mat Sto Combat Hostiles Destroyed 35 | . 7 21 7 Melee 1 | . . 1 . Guns 31 | . 6 18 7 AOE 3 | . 1 2 . Classes Destroyed 10 | . 6 4 . Worker 3 | . 1 2 . Tunneler 2 | . . 2 . Hauler 9 | . 1 5 3 Recycler 1 | . . 1 . Mechanic 2 | . 1 1 . Watcher 4 | . 1 3 . Swarmer 8 | . 3 5 . Grunt 14 | . 4 7 3 Brawler 1 | . . 1 . Sentry 12 | . . 8 4 Best Kill Streak 6 | . 4 5 6 Combat Bots Only 6 | . 3 4 6 Max Kills in Single Turn 3 | . 3 1 1 Gunslinging . | . . . . Exploded 1 | . 1 1 . Melee 1 | . . 1 . Uniques/NPCs Destroyed . | . . . . Combat | -11 -10 -9 -9 -------- Run | Jun Mat Mat Sto Damage Taken 2566 | . 281 1262 1023 Core 507 | . 94 246 167 Absorbed by Shields . | . . . . Core Remaining (%) 81 | 100 62 . . Volleys Fired 131 | . 21 80 30 Largest 2 | . 2 2 2 Hottest 105 | . 40 100 105 Shots Fired 250 | . 42 152 56 Gun 246 | . 42 148 56 Cannon . | . . . . Launcher 4 | . . 4 . Special . | . . . . Kinetic 144 | . 42 95 7 Thermal 13 | . . . 13 Explosive 4 | . . 4 . Electromagnetic 89 | . . 53 36 Robot Hit Streak 17 | . 17 10 16 Robot Miss Streak 3 | . 2 3 2 Penetration Max . | . . . . Secondary Targets 9 | . . 5 4 Max Gunslinging Chain 1 | . . 1 1 Shots Hit Robots 170 | . 23 102 45 Core Hits 86 | . 13 56 17 Critical Kills 2 | . 1 1 . Critical Parts Destroyed 1 | . . . 1 Critical Strikes 5 | . 1 1 3 Burn 2 | . . . 2 Destroy 2 | . 1 . 1 Smash 1 | . . 1 . Melee Attacks 19 | . . 15 4 Impact 19 | . . 15 4 Slashing . | . . . . Piercing . | . . . . Sneak Attacks 2 | . . 2 . Combat Hostiles . | . . . . Follow-up Attacks . | . . . . Damage Inflicted 3007 | . 544 1782 681 Guns 2367 | . 282 1428 657 Cannons . | . . . . Explosions 443 | . 262 157 24 Melee 183 | . . 183 . Ramming 14 | . . 14 . Kinetic 1174 | . 282 792 100 Thermal 472 | . 262 32 178 Explosive 125 | . . 125 . Electromagnetic 1039 | . . 636 403 Impact 183 | . . 183 . Slashing . | . . . . Piercing . | . . . . Highest Corruption 13 | . . 3 13 Average Corruption 3 | . . 3 6 Corruption Purged . | . . . . Corruption Blocked . | . . . . Effects 31 | . . 18 13 Message Errors 8 | . . 5 3 Matter Fused 5 | . . 3 2 Heat Flow Errors 4 | . . 3 1 Energy Discharges 4 | . . 1 3 Parts Rejected 1 | . . 1 . Data Loss (minor) 3 | . . 1 2 Data Loss (major) 2 | . . 2 . Misfires 2 | . . 2 . Weapon Failures 2 | . . . 2 Overload Shots . | . . . . Overflow Damage 85 | . 50 35 . Projectiles . | . . . . Explosions 50 | . 50 . . Melee 35 | . . 35 . Knockbacks 1 | . . 1 . Impact 1 | . . 1 . Kinetic . | . . . . Secondary . | . . . . Self-Inflicted Damage 57 | . 57 . . Shots 1 | . 1 . . Rammed 1 | . . 1 . Targets Rammed 6 | . . 5 1 Kicked 5 | . . 4 1 Crushed . | . . . . Highest Temperature 223 | . 20 223 99 Average Temperature 44 | . 6 74 18 Received Heat Transfer 906 | . 120 318 468 Effects 3 | . . 3 . Interference 3 | . . 3 . Siege Activations . | . . . . Robots Corrupted . | . . . . Combat Hostiles . | . . . . Parts Fried 6 | . . 6 . Impact Corruptions 2 | . . 2 . Robots Melted . | . . . . Combat Hostiles . | . . . . Parts Melted 1 | . . . 1 Heat Transferred 768 | . 200 . 568 Parts Sabotaged . | . . . . Parts Stolen . | . . . . Parts Stripped . | . . . . Power Chain Reactions 2 | . . 1 1 Missiles Intercepted . | . . . . Alert | -11 -10 -9 -9 ------- Run | Jun Mat Mat Sto Peak Influence 474 | . 334 474 433 Initial 200 | . . 56 200 Average 185 | . 210 162 281 Maximum Alert Level 2 | . 1 2 2 Low Security (%) 49 | . 36 61 . Level 1 49 | . 63 36 96 Level 2 1 | . . 1 3 Level 3 . | . . . . Level 4 . | . . . . Level 5 . | . . . . High Security . | . . . . Max Security . | . . . . Squads Dispatched 3 | . 1 1 1 Investigation 1 | . 1 . . Extermination . | . . . . Reinforcement 2 | . . 1 1 Assault . | . . . . Garrison . | . . . . Intercept . | . . . . Searches Triggered . | . . . . Construction Impeded . | . . . . Haulers Reinforced . | . . . . Active Scanning Responses . | . . . . Cargo Convoy Interrupts . | . . . . Stealth | -11 -10 -9 -9 --------- Run | Jun Mat Mat Sto Distress Signals 4 | . 2 1 1 Communications Jammed . | . . . . Distress Signals . | . . . . Times Spotted 59 | . 10 41 8 Peak Tracking Total 5 | . 4 5 5 Tactical Retreats 4 | . . 3 1 Traps | -11 -10 -9 -9 ------- Run | Jun Mat Mat Sto Traps Triggered . | . . . . Indirectly . | . . . . Trap Hack Attempts . | . . . . Triggered . | . . . . Disarmed . | . . . . Reprogrammed . | . . . . Reused . | . . . . Traps Extracted . | . . . . Installed . | . . . . Triggered . | . . . . Machines | -11 -10 -9 -9 ---------- Run | Jun Mat Mat Sto Machines Disabled 11 | . 5 4 2 Max in Single Turn 5 | . 5 1 1 Machines Repaired . | . . . . Machines Sabotaged . | . . . . Overloaded Fab Kills . | . . . . Hacking | -11 -10 -9 -9 --------- Run | Jun Mat Mat Sto Machines Accessed 11 | . 4 5 2 Terminals 8 | . 2 4 2 Fabricators . | . . . . Repair Stations . | . . . . Recycling Units 2 | . 2 . . Scanalyzers 1 | . . 1 . Garrison Access . | . . . . Total Hacks 33 | . 9 17 7 Successful 20 | . 5 11 4 Failed 13 | . 4 6 3 Catastrophic 1 | . 1 . . Database Lockouts . | . . . . Manual 27 | . 7 13 7 Terminals 27 | . 7 13 7 Fabricators . | . . . . Repair Stations . | . . . . Recycling Units 2 | . 2 . . Scanalyzers 4 | . . 4 . Garrison Access . | . . . . Terminal Hacks 4 | . . 2 2 Terminal Index 1 | . . 1 . Zone Layout 3 | . . 1 2 Fabricator Hacks . | . . . . Repair Station Hacks . | . . . . Recycling Unit Hacks 1 | . 1 . . Retrieve Components 1 | . 1 . . Scanalyzer 4 | . . 4 . Insert Component 2 | . . 2 . Analyze 2 | . . 2 . Garrison Access Hacks . | . . . . Unauthorized Hacks 11 | . 4 5 2 Terminals 11 | . 4 5 2 Track 5 | . 2 2 1 Botnet 6 | . 2 3 1 Fabricators . | . . . . Repair Stations . | . . . . Recycling Units . | . . . . Scanalyzers . | . . . . Garrison Access . | . . . . Data Cores Recovered . | . . . . Used . | . . . . Hacking Detections 11 | . 4 5 2 Full Trace Events 2 | . 1 1 . Feedback Events . | . . . . Feedback Blocked . | . . . . Robot Schematics Acquired . | . . . . Robots Built . | . . . . Authchips . | . . . . Time . | . . . . Total Robot Build Rating . | . . . . Part Schematics Acquired 2 | . . 2 . Parts Built . | . . . . Authchips . | . . . . Time . | . . . . Total Part Build Rating . | . . . . Parts Repaired . | . . . . Time . | . . . . Parts Recycled . | . . . . Recycled Matter . | . . . . Retrieved Matter . | . . . . Retrieved Components 2 | . 2 . . Parts Scanalyzed 2 | . . 2 . Part Schematics Acquired 2 | . . 2 . Parts Damaged . | . . . . Bothacking | -11 -10 -9 -9 ------------ Run | Jun Mat Mat Sto Used RIF Installer . | . . . . Robots Hacked . | . . . . Non-combat . | . . . . Combat . | . . . . Robot Hacks Applied . | . . . . Relay Couplers Released . | . . . . Fabnet Peak Effective % . | . . . . Robots Rewired . | . . . . Allies Hacked . | . . . . Hacks Repelled . | . . . . Allies | -11 -10 -9 -9 -------- Run | Jun Mat Mat Sto Total Allies . | . . . . Largest Group . | . . . . Highest-Rated Group . | . . . . Highest-Rated Ally . | . . . . Total Orders . | . . . . Ally Attacks . | . . . . Total Damage . | . . . . Kills . | . . . . Allies Corrupted . | . . . . Allies Melted . | . . . . Intel | -11 -10 -9 -9 ------- Run | Jun Mat Mat Sto Robot Analysis Total . | . . . . Derelict Logs Recovered . | . . . . Drone Launches . | . . . . Drone Recoveries . | . . . . Exploration | -11 -10 -9 -9 ------------- Run | Jun Mat Mat Sto Turns Passed 2635 | . 415 1869 351 Spaces Moved 1027 | 1 269 637 120 Core 8 | . . 8 . Treads 170 | . . 170 . Legs 849 | 1 269 459 120 Wheels . | . . . . Hover . | . . . . Flight . | . . . . Fastest Speed 120 | 120 120 120 190 Average Speed 159 | 120 120 171 190 Slowest Speed 450 | 120 120 450 190 Overloaded Moves . | . . . . Propulsion Burnouts . | . . . . Robots Hopped . | . . . . Cave-ins Triggered . | . . . . Exploration Rate (%) 34 | 2 44 64 28 Regions Visited 3 Branch Regions 1 Pre-discovered Areas . | . . . . Known Exits Taken . | . . . . Unknown Exits Taken 3 | 1 1 1 . Scrap Searched . | . . . . Spaces Dug 5 | . . 3 2 Terrain Destroyed 74 | . 46 23 5 Melee 5 | . . 3 2 Projectile . | . . . . AOE 69 | . 46 20 3 Terrain Rammed . | . . . . Walls Destroyed . | . . . . Machines Disabled . | . . . . Actions | -11 -10 -9 -9 --------- Run | Jun Mat Mat Sto Total 1732 | . 320 1237 175 Wait 434 | . 15 415 4 Move 1024 | . 268 636 120 Hop . | . . . . Pick Up 34 | . 6 26 2 Fast Attach 10 | . 1 7 2 Attach 13 | . . 8 5 Detach . | . . . . Swap 33 | . 4 23 6 Drop 28 | . 5 22 1 Fire 131 | . 21 80 30 Melee 19 | . . 15 4 Ram . | . . . . Kick 5 | . . 4 1 Crush 1 | . . 1 . Escape Stasis . | . . . . Rewire . | . . . . Trap . | . . . . Miscellaneous . | . . . . Route ------- -11/Junkyard -10/Materials (discovered 2 exits: *Mat / [*Min]) -9/Materials (discovered 3 exits: [*Mat] / [*Min] / *Sto) -9/Storage History --------- Turn | Location | Event 1 | -11/Junkyard | Discovered new exit (range 0) 1 | -11/Junkyard | Entered Materials 304 | -10/Materials | Build established: Mutant 307 | -10/Materials | Discovered new exit (range 10) 410 | -10/Materials | Discovered new exit (range 5) 416 | -10/Materials | Entered another Materials area 416 | -9/Materials | Evolved 2 slots: Propulsion x1, Utility x1 731 | -9/Materials | Build established: Scavenger-Mutant 1443 | -9/Materials | Lost 3 parts (2n1u) 1708 | -9/Materials | Discovered new exit (range 14) 2096 | -9/Materials | Build established: Mutant 2125 | -9/Materials | Discovered new exit (range 10) 2227 | -9/Materials | Core integrity fell below 50% 2240 | -9/Materials | Discovered new exit (range 12) 2285 | -9/Materials | Entered Storage 2493 | -9/Storage | Core integrity fell below 20% 2535 | -9/Storage | System corruption reached 10% 2537 | -9/Storage | Lost 6 parts (2n4w) 2636 | -9/Storage | Destroyed by Y-45 Defender with Heavy Assault Rifle Last Messages --------------- >>Trojan(Track) Trojan loaded successfully. Testing... Tracking enabled and active. 02561_ A-02 Transporter destroyed. 02568_ System corrupted: Component data lost. 02574_ U-05 Engineer builds a Door. 02583_ UZC=U&WWG&L7UEBKZY,4TLO= 02609_ System corrupted: Energy discharge (-64). 02611_ Cooling System destroyed. 02616_ Aluminum Leg destroyed. 02618_ System corrupted: Particle Gun failed to cycle. 02624_ Y-45 Defender destroyed. 02624_ Switching to secondary target: Y-45 Defender. 02624_ Y-45 Defender suffers critical hit (Burn). 02625_ K-01 Serf collects debris. 02627_ System corrupted: Particle Gun failed to cycle. 02628_ K-01 Serf collects debris. 02630_ Y-45 Defender suffers critical hit (Burn). 02633_ Aluminum Leg destroyed. Map ----- +----------------------------------------------------+ | ??????????????????????????????????? | | ??????????????????????????????????? | | ??????????????????????????????????? | | ??????????????????????????????????? | | ??????????????????????????????????? | | ??????????????????????????????????? | | ??????????????????????????????????? | | ??????????????????????????????????? | | ??????????????????????????????????? | | ??????????????????????????????????? | | ?????????? ???????????????????????? | | ?????????? #????????#?????????????? | | ?????????? #??????# ?????????????? | | ##T###???# #??????# ?????????????? | | ##### ######## ????????????? | | + # # ???? ? ?????? | | ### # """" # ????"" ?????? | | """ #?# # """" + ???""??????? | | """ #?# # """" #Y ???""??????? | | """ #?# # """" # ??? ??????? | | """ #?# # #^ #??+#??????? | | #?# #### ### # !## ####???? | | #?# #??###?# ? = #???? | | ###Y##?# #??????# ??!%* #???? | | #####??# s########+#### #???? | | ######## # + @ #???? | | + # #####/###/#???? | | k""" # # #???T #???????? | | "T"!# r# #???#"#???????? | | !r]+ + #?????????????? | | ]]%# # #?????????????? | | """""]]# # #?????????????? | | """"" =# # #?????????????? | | """" # % # #?????????????? | | #% ##########?????????????? | | ######## ########???????????????? | | % # + # #???????????????? | | * # [ # " #???????????????? | | * """ #% !# # #???????????????? | | """ + #T######???????????????? | | """ # ########???????????????? | | # ##?????????????????????? | | # ##?????????????????????? | | # ###################????? | | ##+##### ###################????? | | ## ##### ##????? | | ## ##????? | | "###### ##????? | | ##############################????? | | ###???########################????? | +----------------------------------------------------+ Best States ------------- Heat Dissipation 64 Energy Generation 14 Energy Capacity 280 Matter Stores 300 Matter Capacity 300 Sight Range 16 Terrain Scan Density 10 Armor Coverage 150 Evasion (%) 55 Recoil Reduction 1 Item Schematics ----------------- Imp. Flight Unit | -9/Materials | Scanalyzed Seismic Detector | -9/Materials | Scanalyzed Robot Schematics ------------------ None Fabricated ------------ Nothing Alien Tech Used ----------------- None Achievements -------------- Safety First Challenges ------------ None Game ------ Seed InsulatedHardcellCompactor Manual? 0 Play Time 00:41:40 Cumulative 82.4 hours Start 2023.12.28 @ 09:51:52 End 2023.12.28 @ 14:44:16 Sessions 1 Manual Loads 0 Difficulty Rogue Special Mode None Game No. 78 Rogue 78 Adventurer 0 Explorer 0 Win Type - Total 0 Types 0/0/0/0/0/0/0/0/0 Lore% 32 Gallery% 43 Achievement% 34 Wizard Run 0 Options --------- ASCII 0 Keyboard 0 Movement Numpad Keybinds 0 Fullscreen 1 Font 18/X11Bold Map View 76x50 Tactical HUD 1 Map Filters NONE Filters NONE Steam 1 RUN: 2dc8ad9a-2ba7-47c9-804b-8f84cc9197b7